Workbook

Sheet Titre
G3: Objectif du labo Excel 3
G5: Utiliser Excel pour décrire les données d'une variable à l'aide des mesures de tendance centrale et de variation de façon à apprécier la représentativité et la variabilité d'un phénomène.

Sheet Md
B2: Calcul de la médiane pour des scores bruts- n impair (Démonstration & exercice)
B4: Quelle est la note typique médiane chez les étudiants du SOL1020-E13? Pour y répondre, on s'appuie sur les scores bruts…
B6: Notes à l'examen intra des 29 premiers étudiants du SOL1020-E13 en ordre alphabétique (n impair) | J6: Notes à l'examen final des 29 premiers étudiants du SOL1020-E13 en ordre alphabétique (n impair)
B8: Notes (X) | D8: Rang | E8: n=29 | J8: Notes (X) | L8: Rang | M8: n=29
B9: 42 | D9: 1 | J9: 40
B10: 50 | D10: 2 | J10: 41
B11: 54 | D11: 3 | J11: 41
B12: 55 | D12: 4 | J12: 42
B13: 58 | D13: 5 | J13: 44
B14: 59 | D14: 6 | J14: 49
B15: 59 | D15: 7 | J15: 49
B16: 61 | D16: 8 | J16: 50
B17: 61 | D17: 9 | J17: 65
B18: 69 | D18: 10 | J18: 66
B19: 74 | D19: 11 | J19: 66
B20: 75 | D20: 12 | J20: 68
B21: 76 | D21: 13 | J21: 68
B22: 78 | D22: 14 | J22: 69
B23: 78 | D23: 15 | E23: n+1/2=15 | J23: 74 | M23: n+1/2=15
B24: 80 | D24: 16 | J24: 75
B25: 81 | D25: 17 | J25: 75
B26: 81 | D26: 18 | J26: 76
B27: 82 | D27: 19 | J27: 76
B28: 84 | D28: 20 | J28: 81
B29: 84 | D29: 21 | J29: 85
B30: 85 | D30: 22 | J30: 86
B31: 86 | D31: 23 | J31: 88
B32: 88 | D32: 24 | J32: 89
B33: 88 | D33: 25 | J33: 89
B34: 91 | D34: 26 | J34: 89
B35: 92 | D35: 27 | J35: 90
B36: 94 | D36: 28 | J36: 95
B37: 94 | D37: 29 | J37: 98
B39: Interprétation statistique
B41: La médiane est de 78. Ce qui signifie qu'au moins 50% des étudiants ont obtenu une note de 78% ou moins à l'examen intra du SOL1020-E13.
B44: Calcul de la médiane pour des scores bruts- n pair (Démonstration & exercice)
B46: Notes à l'examen intra des 30 premiers étudiants du SOL1020-E13 en ordre alphabétique (n pair) | J46: Notes à l'examen final des 30 premiers étudiants du SOL1020-E13 en ordre alphabétique (n pair)
B48: Notes (X) | D48: Rang | E48: n=30 | J48: Notes (X) | L48: Rang | M48: n=30
B49: 42 | D49: 1 | J49: 40
B50: 50 | D50: 2 | J50: 41
B51: 54 | D51: 3 | J51: 41
B52: 55 | D52: 4 | J52: 42
B53: 58 | D53: 5 | J53: 44
B54: 59 | D54: 6 | J54: 49
B55: 59 | D55: 7 | J55: 49
B56: 61 | D56: 8 | J56: 50
B57: 61 | D57: 9 | J57: 65
B58: 69 | D58: 10 | J58: 66
B59: 74 | D59: 11 | J59: 66
B60: 75 | D60: 12 | J60: 68
B61: 76 | D61: 13 | J61: 68
B62: 78 | D62: 14 | J62: 69
B63: 78 | D63: 15 | E63: n+1/2=15,5 | J63: 74 | M63: n+1/2=15,5
B64: 80 | D64: 16 | J64: 75
B65: 81 | D65: 17 | J65: 75
B66: 81 | D66: 18 | J66: 76
B67: 82 | D67: 19 | J67: 76
B68: 84 | D68: 20 | J68: 81
B69: 84 | D69: 21 | J69: 85
B70: 85 | D70: 22 | J70: 86
B71: 86 | D71: 23 | J71: 88
B72: 88 | D72: 24 | J72: 89
B73: 88 | D73: 25 | J73: 89
B74: 91 | D74: 26 | J74: 89
B75: 92 | D75: 27 | J75: 90
B76: 94 | D76: 28 | J76: 95
B77: 94 | D77: 29 | J77: 98
B78: 98 | D78: 30 | J78: 100
B80: Représentation graphique de la médiane à l'aide du diagramme en boîtes et à moustaches (n=30)
S82: Examen intra | T82: Examen final | U82: Quart
R83: min | S83: 42 | T83: =QUARTILE(J49:J78,0) -> 40 | U83: 0
R84: Q1 | S84: =QUARTILE(B49:B78,1) -> 61 | T84: =QUARTILE(J49:J78,1) -> 53.8 | U84: 1
R85: Md | S85: 79 | T85: =QUARTILE(J49:J78,2) -> 74.5 | U85: 2
R86: Q2 | S86: =QUARTILE(B49:B78,3) -> 85.8 | T86: =QUARTILE(J49:J78,3) -> 87.5 | U86: 3
R87: max | S87: 98 | T87: 100 | U87: 4

Sheet Moyenne
B2: Moyenne dans le cas d'une distribution avec des données brutes
B4: Quel est le revenu horaire typique moyen (en dollars) d'une micro-entreprise? (n=5)
B6: Démonstration: calcul de la moyenne | M6: Exercice: trouver la moyenne
C8: Cas | E8: Scores Xi | N8: Cas | P8: Scores Xi
C9: 1 | E9: 10 | N9: 1 | P9: 20
C10: 2 | E10: 30 | N10: 2 | P10: 30
C11: 3 | E11: 20 | N11: 3 | P11: 40
C12: 4 | E12: 50 | N12: 4 | P12: 60
C13: 5 | E13: 40 | N13: 5 | P13: 20
D14: SXi | E14: =SUM(E9:E13) -> 150 | O14: SXi
C16: X = | D16: SXi/n | E16: =E14/5 -> 30 | N16: X = | O16: SXi/n
B20: Interprétation statistique
B22: La moyenne est égale à 30. Autrement dit, les cinq travailleurs de la micro-entreprise gagnent en moyenne 30 dollars par heure, soit le revenu typique.
B25: Moyenne dans le cas d'une distribution avec des fréquences simples
B27: Revenu horaire de 15 travailleurs d'une micro-entreprise (en dollars) | M27: Revenu horaire de 22 travailleurs d'une micro-entreprise (en dollars)
B29: Démonstration: calcul de la moyenne pondérée | M29: Exercice: trouver la moyenne pondérée des scores ci-dessous
C31: Scores Xi | E31: Fréq. fi | I31: Xi fi | N31: Scores Xi | P31: Fréq. fi | S31: Xi fi
C32: 10 | E32: 3 | I32: =C32*E32 -> 30 | N32: 20 | P32: 4
C33: 30 | E33: 2 | I33: =C33*E33 -> 60 | N33: 30 | P33: 6
C34: 20 | E34: 5 | I34: =C34*E34 -> 100 | N34: 40 | P34: 3
C35: 50 | E35: 4 | I35: =C35*E35 -> 200 | N35: 60 | P35: 7
C36: 40 | E36: 1 | I36: =C36*E36 -> 40 | N36: 20 | P36: 2
B37: SXi | C37: =SUM(C32:C36) -> 150 | D37: S fi | E37: =SUM(E32:E36) -> 15 | H37: S Xifi | I37: =SUM(I32:I36) -> 430 | M37: SXi | N37: =SUM(N32:N36) -> 170 | O37: S fi | P37: =SUM(P32:P36) -> 22 | R37: SXifi
B39: X = | C39: SXifi / n | D39: =I37/E37 -> 28.7 | M39: X = | N39: SXifi / n

Sheet Ecartype
B2: Calcul de la variance et de l'écart-type- Démonstration & exercice
B4: Quelle est la variation du nombre d'heures passées sur Internet par jour ? (n=9)
B6: Cas (i) | C6: Scores Xi | D6: Déviation Di | E6: Di2
B7: 1 | C7: 2 | D7: =(C7-$C$19) -> -8 | E7: =D7^2 -> 64 | F7: = D12 | G7: = (X1 - X)2
B8: 2 | C8: 4 | D8: -6 | E8: 36 | F8: = D22 | G8: = (X2 - X)2
B9: 3 | C9: 6 | D9: -4 | E9: 16 | F9: = D32 | G9: = (X3 - X)2
B10: 4 | C10: 8 | D10: -2 | E10: 4 | F10: = D42 | G10: = (X4 - X)2
B11: 5 | C11: 10 | D11: 0 | E11: 0 | F11: = D52 | G11: = (X5 - X)2
B12: 6 | C12: 12 | D12: 2 | E12: 4 | F12: = D62 | G12: = (X6 - X)2
B13: 7 | C13: 14 | D13: 4 | E13: 16 | F13: = D72 | G13: = (X7 - X)2
B14: 8 | C14: 16 | D14: 6 | E14: 36 | F14: = D82 | G14: = (X8 - X)2
B15: 9 | C15: 18 | D15: 8 | E15: 64 | F15: = D92 | G15: = (X9 - X)2
B16: S | C16: =SUM(C7:C15) -> 90 | D16: =SUM(D7:D15) -> 0 | E16: =SUM(E7:E15) -> 240
E17: SDi² = S(Xi - X)²
B18: n | C18: 9
B19: Moyenne X | C19: =C16/C18 -> 10
E20: Formules | F20: s2 = (SDi2)/N
B21: Variance Échan. | C21: =(E16/8) -> 30 | D21: =240/9-1 | F21: s2 = (SDi2)/n-1
F22: s = Ö s2
B23: Écart-type Échan. | C23: =C21^0.5 -> 5.5 | D23: =30^0,5 | F23: s = Ö s2
B25: Interprétation statistique et représentation graphique: L'écart-type de l'échantillon est de 5,5. Autrement dit, environ deux tiers des répondants (68%) passent sur Internet ± 5,5 heures de la moyenne, soit entre 4,5 et 15,5 heures (10-5,5 et 10+5,5). Encore, si l'on prenait au hasard un cas, il y a 68% de chances que son score se trouve à ± 5,5 heures de la moyenne, soit entre 4,5 et 15,5 h.
B40: Exercice: calculer la variance et l'écart-type des scores ci-dessous
B42: Quelle est la variation de la performance (notes en %) chez les étudiants ? (n=7 par groupe)
B44: Groupe A | C44: Scores Xi | D44: Déviation Di | E44: Di2
B45: 1 | C45: 64 | F45: = D12 | G45: = (X1 - X)2
B46: 2 | C46: 66 | F46: = D22 | G46: = (X2 - X)2
B47: 3 | C47: 68 | F47: = D32 | G47: = (X3 - X)2
B48: 4 | C48: 69 | F48: = D42 | G48: = (X4 - X)2
B49: 5 | C49: 70 | F49: = D52 | G49: = (X5 - X)2
B50: 6 | C50: 71 | F50: = D62 | G50: = (X6 - X)2
B51: 7 | C51: 82 | F51: = D72 | G51: = (X7 - X)2
B52: S | C52: =SUM(C45:C51) -> 490
E53: SDi² = S(Xi - X)²
B54: n | C54: 7
B55: Moyenne X | C55: =C52/C54 -> 70
B56: Variance échan. | D56: X ± s | F56: s2 = (SDi2)/n-1
B57: Écart-type échan. | D57: 70 ± | E57: =""&C57 ->  | F57: s = Ö s2
B59: Groupe B | C59: Scores Xi | D59: Déviation Di | E59: Di2
B60: 1 | C60: 44 | D60: =C60-70 -> -26 | E60: =D60*D60 -> 676 | F60: = D12 | G60: = (X1 - X)2
B61: 2 | C61: 56 | D61: =C61-70 -> -14 | E61: =D61*D61 -> 196 | F61: = D22 | G61: = (X2 - X)2
B62: 3 | C62: 63 | D62: -7 | E62: 49 | F62: = D32 | G62: = (X3 - X)2
B63: 4 | C63: 74 | D63: 4 | E63: 16 | F63: = D42 | G63: = (X4 - X)2
B64: 5 | C64: 80 | D64: 10 | E64: 100 | F64: = D52 | G64: = (X5 - X)2
B65: 6 | C65: 82 | D65: 12 | E65: 144 | F65: = D62 | G65: = (X6 - X)2
B66: 7 | C66: 91 | D66: 21 | E66: 441 | F66: = D72 | G66: = (X7 - X)2
B67: S | C67: =SUM(C60:C66) -> 490 | D67: =SUM(D60:D66) -> 0 | E67: =SUM(E60:E66) -> 1622
E68: SDi² = S(Xi - X)²
B69: n | C69: 7
B70: Moyenne X | C70: =C67/C69 -> 70
B71: Variance échan. | C71: =E67/6 -> 270.3 | D71: X ± s | F71: s2 = (SDi2)/n-1
B72: Écart-type échan. | C72: =SQRT(C71) -> 16.4 | D72: 70 ± | E72: =""&C72 -> 16,4 | F72: s = Ö s2
B74: Groupe C | C74: Scores Xi | D74: Déviation Di | E74: Di2
B75: 1 | C75: 34 | D75: =C75-70 -> -36 | E75: =D75*D75 -> 1296 | F75: = D12 | G75: = (X1 - X)2
B76: 2 | C76: 46 | D76: =C76-70 -> -24 | E76: =D76*D76 -> 576 | F76: = D22 | G76: = (X2 - X)2
B77: 3 | C77: 58 | D77: -12 | E77: 144 | F77: = D32 | G77: = (X3 - X)2
B78: 4 | C78: 79 | D78: 9 | E78: 81 | F78: = D42 | G78: = (X4 - X)2
B79: 5 | C79: 82 | D79: 12 | E79: 144 | F79: = D52 | G79: = (X5 - X)2
B80: 6 | C80: 90 | D80: 20 | E80: 400 | F80: = D62 | G80: = (X6 - X)2
B81: 7 | C81: 101 | D81: 31 | E81: 961 | F81: = D72 | G81: = (X7 - X)2
B82: S | C82: =SUM(C75:C81) -> 490 | D82: =SUM(D75:D81) -> 0 | E82: =SUM(E75:E81) -> 3602
E83: SDi² = S(Xi - X)²
B84: n | C84: 7
B85: Moyenne X | C85: =C82/C84 -> 70
B86: Variance échan. | C86: =E82/6 -> 600.3 | D86: X ± s | F86: s2 = (SDi2)/n-1
B87: Écart-type échan. | C87: =SQRT(C86) -> 24.5 | D87: 70 ± | E87: =""&C87 -> 24,5 | F87: s = Ö s2
B89: En vous basant sur l'écart-type, laquelle des trois distributions semble plus dispersée: A, B ou C? Interprétez statistiquement l'écart-type de cette distribution.

Sheet CV
B2: Démonstration: Calcul du coefficient de variation
B4: Quelle est la variation du nombre d'heures passées sur Internet par jour ? (n=9)
B6: Cas (i) | C6: Scores-Xi | E6: CV = (s / X) * 100
B7: 1 | C7: 2
B8: 2 | C8: 4 | E8: Moyenne | F8: =AVERAGE(C7:C15) -> 10
B9: 3 | C9: 6
B10: 4 | C10: 8 | E10: Ecart-type | F10: =STDEV(C7:C15) -> 5.48
B11: 5 | C11: 10
B12: 6 | C12: 12 | E12: CV | F12: =(F10/F8)*100 -> 54.8
B13: 7 | C13: 14
B14: 8 | C14: 16 | E14: Interprétation statistique: Le CV (54,8%) étant de loin supérieur à 15%, la distribution est donc très hétérogène.
B15: 9 | C15: 18
B17: Exercice: Calculer le coefficient de variation
B19: Quelle est la variation de la performance (notes en %) chez les étudiants ? (n=7 par groupe)
B21: Groupe A | C21: Xi | E21: Groupe B | F21: Xi | H21: Groupe C | I21: Xi
B22: 1 | C22: 64 | E22: 1 | F22: 44 | H22: 1 | I22: 34
B23: 2 | C23: 66 | E23: 2 | F23: 56 | H23: 2 | I23: 46
B24: 3 | C24: 68 | E24: 3 | F24: 63 | H24: 3 | I24: 58
B25: 4 | C25: 69 | E25: 4 | F25: 74 | H25: 4 | I25: 79
B26: 5 | C26: 70 | E26: 5 | F26: 80 | H26: 5 | I26: 82
B27: 6 | C27: 71 | E27: 6 | F27: 82 | H27: 6 | I27: 90
B28: 7 | C28: 82 | E28: 7 | F28: 91 | H28: 7 | I28: 101
B30: Moyenne | E30: Moyenne | F30: =AVERAGE(F22:F28) -> 70 | H30: Moyenne | I30: =AVERAGE(I22:I28) -> 70
B32: Ecart-type | E32: Ecart-type | F32: =STDEV(F22:F28) -> 16.4 | H32: Ecart-type | I32: =STDEV(I22:I28) -> 24.5
B34: CV | E34: CV | F34: =F32/F30 -> 0.23 | H34: CV | I34: =I32/I30 -> 0.35
B36: En vous basant sur le coefficient de variation, laquelle des trois distributions semble plus dispersée: A, B ou C? Interprétez statistiquement le CV de cette distribution.

Sheet Formules
B2: Utilisation des formules statistiques intégrées- Démonstration & exercice
B4: Quelle est la tendance centrale et la variation de la performance (notes sur 20) chez les étudiants de trois groupes ? (n=8)
B6: Groupe 1 | C6: Scores Xi | E6: Groupe 2 | F6: Scores Xi | H6: Groupe 3 | I6: Scores Xi
B7: 1 | C7: 10 | E7: 1 | F7: 8 | H7: 1 | I7: 12
B8: 2 | C8: 12 | E8: 2 | F8: 20 | H8: 2 | I8: 11
B9: 3 | C9: 10 | E9: 3 | F9: 15 | H9: 3 | I9: 11
B10: 4 | C10: 11 | E10: 4 | F10: 12 | H10: 4 | I10: 9
B11: 5 | C11: 17 | E11: 5 | F11: 12 | H11: 5 | I11: 13
B12: 6 | C12: 13 | E12: 6 | F12: 11 | H12: 6 | I12: 8
B13: 7 | C13: 14 | E13: 7 | F13: 13 | H13: 7 | I13: 13
B14: 8 | C14: 9 | E14: 8 | F14: 10 | H14: 8 | I14: 10
B16: Démonstration: Calcul de statistiques descriptives | E16: Exercice: Calculer les statistiques descriptives ci-dessous!
B18: Mode | C18: =MODE(C7:C14) -> 10 | E18: Mode | H18: Mode
B19: Médiane | C19: =MEDIAN(C7:C14) -> 11.5 | E19: Médiane | H19: Médiane
B20: Moyenne | C20: =AVERAGE(C7:C14) -> 12 | E20: Moyenne | H20: Moyenne
B21: Minimum | C21: =MIN(C7:C14) -> 9 | E21: Minimum | H21: Minimum
B22: Maximum | C22: =MAX(C7:C14) -> 17 | E22: Maximum | H22: Maximum
B23: Étendue | C23: =C22-C21 -> 8 | E23: Étendue | H23: Étendue
B24: Quartile 1 | C24: =QUARTILE(C7:C14,1) -> 10 | E24: Quartile 1 | H24: Quartile 1
B25: Quartile 3 | C25: =QUARTILE(C7:C14,3) -> 13.25 | E25: Quartile 3 | H25: Quartile 3
B26: Écart interquartile | C26: =C25-C24 -> 3.25 | E26: Écart interquartile | H26: Écart interquartile
B27: Écart-type | C27: =STDEV(C7:C14) -> 2.62 | E27: Écart-type | H27: Écart-type
B28: Coef. de variation | C28: =C27/C20*100 -> 21.83 | E28: Coef. de variation | H28: Coef. de variation

Sheet ScoresZ
B2: Démonstration: calcul des scores zi
B4: Comment se situent les étudiants par rapport à la moyenne de leur groupe d'appartenance? (N=10)
B6: Notes finales des 10 premiers étudiants en ordre alphabétique du SOL1020-H13 (en %: scores-X)
B8: m = | C8: 77.8
B9: s = | C9: 11.6
C11: Ind (i) | E11: Scores Xi | G11: zi=(Xi-m)/s | I11: Formule | K11: Calcul
C12: 1 | E12: 72 | G12: =(E12-$C$8)/$C$9 -> -0.5 | I12: z1=(x1-m)/s | K12: ="= ("&E12&" - "&$C$8&") / "&$C$9&" = "&G12 -> = (72 - 77,8) / 11,6 = -0,5
C13: 2 | E13: 66 | G13: =(E13-$C$8)/$C$9 -> -1 | I13: z2=(x2-m)/s | K13: ="= ("&E13&" - "&$C$8&") / "&$C$9&" = "&G13 -> = (66 - 77,8) / 11,6 = -1
C14: 3 | E14: 66 | G14: -1 | I14: z3=(x3-m)/s | K14: = (66 - 77,8) / 11,6 = -1
C15: 4 | E15: 92 | G15: 1.2 | I15: z4=(x4-m)/s | K15: = (92 - 77,8) / 11,6 = 1,2
C16: 5 | E16: 66 | G16: -1 | I16: z5=(x5-m)/s | K16: = (66 - 77,8) / 11,6 = -1
C17: 6 | E17: 79 | G17: 0.1 | I17: z6=(x6-m)/s | K17: = (79 - 77,8) / 11,6 = 0,1
C18: 7 | E18: 69 | G18: -0.8 | I18: z7=(x7-m)/s | K18: = (69 - 77,8) / 11,6 = -0,8
C19: 8 | E19: 95 | G19: 1.5 | I19: z8=(x8-m)/s | K19: = (95 - 77,8) / 11,6 = 1,5
C20: 9 | E20: 91 | G20: 1.1 | I20: z9=(x9-m)/s | K20: = (91 - 77,8) / 11,6 = 1,1
C21: 10 | E21: 82 | G21: 0.4 | I21: z10=(x10-m)/s | K21: = (82 - 77,8) / 11,6 = 0,4
B24: Exercice: calculer les scores zi
B26: Comment se situent les étudiants par rapport à la moyenne de leur groupe d'appartenance? (N=10)
B28: Notes finales des 10 premiers étudiants en ordre alphabétique du SOL1020-A12 (en %: scores-X)
B30: m = | C30: 79.4
B31: s = | C31: 10.6
C34: Ind (i) | E34: Scores Xi | G34: zi=(Xi-m)/s | I34: Formule | K34: Calcul
C35: 1 | E35: 89 | I35: z1=(x1-m)/s | K35: ="= ("&E35&" - "&$C$30&") / "&$C$31&" = "&G35 -> = (89 - 79,4) / 10,6 =
C36: 2 | E36: 76 | I36: z2=(x2-m)/s | K36: ="= ("&E36&" - "&$C$30&") / "&$C$31&" = "&G36 -> = (76 - 79,4) / 10,6 =
C37: 3 | E37: 75 | I37: z3=(x3-m)/s | K37: = (75 - 79,4) / 10,6 =
C38: 4 | E38: 86 | I38: z4=(x4-m)/s | K38: = (86 - 79,4) / 10,6 =
C39: 5 | E39: 72 | I39: z5=(x5-m)/s | K39: = (72 - 79,4) / 10,6 =
C40: 6 | E40: 71 | I40: z6=(x6-m)/s | K40: = (71 - 79,4) / 10,6 =
C41: 7 | E41: 100 | I41: z7=(x7-m)/s | K41: = (100 - 79,4) / 10,6 =
C42: 8 | E42: 84 | I42: z8=(x8-m)/s | K42: = (84 - 79,4) / 10,6 =
C43: 9 | E43: 78 | I43: z9=(x9-m)/s | K43: = (78 - 79,4) / 10,6 =
C44: 10 | E44: 63 | I44: z10=(x10-m)/s | K44: = (63 - 79,4) / 10,6 =
E46: m
E48: s

Sheet CN-Ord
B2: La courbe normale standardisée (ordonnées ou fréquences f)
B4: Connaisant le score-z, il est possible de déterminer son ordonnée ou fréquence f en se basant sur la table de la loi normale et ainsi on peut tracer la courbe normale à l'aide d'Excel.
B8: z | C8: f | D8: P ≤ 0 | I8: m | J8: s
B9: -3 | C9: =NORMDIST(B9,0,1,FALSE) -> 0.0044 | D9: =IF(B9<=$I$9,C9,"") ->  | I9: 0 | J9: 1
B10: -2,9 | C10: =NORMDIST(B10,0,1,FALSE) -> 0.006 | D10: =IF(B10<=$I$9,C10,"") -> 
B11: -2,8 | C11: 0.0079
B12: -2,7 | C12: 0.0104
B13: -2,6 | C13: 0.0136
B14: -2,5 | C14: 0.0175
B15: -2,4 | C15: 0.0224
B16: -2,3 | C16: 0.0283
B17: -2,2 | C17: 0.0355
B18: -2,1 | C18: 0.044
B19: -2 | C19: 0.054
B20: -1,9 | C20: 0.0656
B21: -1,8 | C21: 0.079
B22: -1,7 | C22: 0.094
B23: -1,6 | C23: 0.1109
B24: -1,5 | C24: 0.1295
B25: -1,4 | C25: 0.1497
B26: -1,3 | C26: 0.1714
B27: -1,2 | C27: 0.1942
B28: -1,1 | C28: 0.2179
B29: -1 | C29: 0.242
B30: -0,9 | C30: 0.2661
B31: -0,8 | C31: 0.2897
B32: -0,7 | C32: 0.3123
B33: -0,6 | C33: 0.3332
B34: -0,5 | C34: 0.3521
B35: -0,4 | C35: 0.3683
B36: -0,3 | C36: 0.3814 | G36: z | H36: f ou ordonnées | K36: z | L36: f ou ordonnées
B37: -0,2 | C37: 0.391 | G37: -3 | K37: 3
B38: -0,1 | C38: 0.397 | G38: -2.5 | K38: 2.5
B39: 0 | C39: 0.3989 | G39: -2 | K39: 2
B40: 0,1 | C40: 0.397 | G40: -1.5 | K40: 1.5
B41: 0,2 | C41: 0.391 | G41: -1 | K41: 1
B42: 0,3 | C42: 0.3814 | G42: -0.5 | K42: 0.5
B43: 0,4 | C43: 0.3683 | G43: 0 | K43: 0
B44: 0,5 | C44: 0.3521
B45: 0,6 | C45: 0.3332
B46: 0,7 | C46: 0.3123
B47: 0,8 | C47: 0.2897
B48: 0,9 | C48: 0.2661
B49: 1 | C49: 0.242
B50: 1,1 | C50: 0.2179
B51: 1,2 | C51: 0.1942
B52: 1,3 | C52: 0.1714
B53: 1,4 | C53: 0.1497
B54: 1,5 | C54: 0.1295
B55: 1,6 | C55: 0.1109
B56: 1,7 | C56: 0.094
B57: 1,8 | C57: 0.079 | D57: =IF(B57<=$I$9,C57,"") -> 
B58: 1,9 | C58: 0.0656
B59: 2 | C59: 0.054
B60: 2,1 | C60: 0.044
B61: 2,2 | C61: 0.0355
B62: 2,3 | C62: 0.0283
B63: 2,4 | C63: 0.0224
B64: 2,5 | C64: 0.0175
B65: 2,6 | C65: 0.0136
B66: 2,7 | C66: 0.0104
B67: 2,8 | C67: 0.0079
B68: 2,90000000000001 | C68: 0.006
B69: 3 | C69: 0.0044

Sheet CN-Prop
C2: La courbe normale standardisée (scores bruts et scores z): Propriétés
C4: Connaissant m et s, on peut décrire complètement la distribution des scores bruts (X) et standardisés (z) et les représenter à l'aide de la courbe normale afin de déterminer une proportion donnée.
C6: m | D6: s | G6: - 3 s | H6: - 2 s | I6: - 1 s | J6: m | K6: 1 s | L6: 2 s | M6: 3 s
C7: 100 | D7: 10 | G7: =H7-10 -> 70 | H7: 80 | I7: =J7-10 -> 90 | J7: 100 | K7: =J7+10 -> 110 | L7: =K7+10 -> 120 | M7: 130
C8: 70 | D8: 5
I10: m | J10: s
B11: z | C11: X | D11: f | E11: P < X | F11: X1 < P < X2 | I11: 100 | J11: 10
B12: -3 | C12: =$I$11+($J$11*B12) -> 70 | D12: =NORMDIST(B12,0,1,FALSE) -> 0.0044 | E12: =IF(C12<=$I$40,D12,"") ->  | F12: =IF(AND(C12>=$K$40,C12<=$L$40),D12,"") -> 
B13: -2.9 | C13: =$I$11+($J$11*B13) -> 71 | D13: =NORMDIST(B13,0,1,FALSE) -> 0.006 | E13: =IF(C13<=$I$40,D13,"") ->  | F13: =IF(AND(C13>=$K$40,C13<=$L$40),D13,"") -> 
B14: -2.8 | C14: 72 | D14: 0.0079
B15: -2.7 | C15: 73 | D15: 0.0104
B16: -2.6 | C16: 74 | D16: 0.0136
B17: -2.5 | C17: 75 | D17: 0.0175
B18: -2.4 | C18: 76 | D18: 0.0224
B19: -2.3 | C19: 77 | D19: 0.0283
B20: -2.2 | C20: 78 | D20: 0.0355
B21: -2.1 | C21: 79 | D21: 0.044
B22: -2 | C22: 80 | D22: 0.054
B23: -1.9 | C23: 81 | D23: 0.0656
B24: -1.8 | C24: 82 | D24: 0.079
B25: -1.7 | C25: 83 | D25: 0.094
B26: -1.6 | C26: 84 | D26: 0.1109
B27: -1.5 | C27: 85 | D27: 0.1295
B28: -1.4 | C28: 86 | D28: 0.1497
B29: -1.3 | C29: 87 | D29: 0.1714
B30: -1.2 | C30: 88 | D30: 0.1942
B31: -1.1 | C31: 89 | D31: 0.2179
B32: -1 | C32: 90 | D32: 0.242
B33: -0.9 | C33: 91 | D33: 0.2661
B34: -0.8 | C34: =$I$11+($J$11*B34) -> 92 | D34: 0.2897 | F34: =IF(AND(C34>=$K$40,C34<=$L$40),D34,"") -> 
B35: -0.7 | C35: 93 | D35: 0.3123 | N35: Scores X
B36: -0.6 | C36: 94 | D36: 0.3332
B37: -0.5 | C37: 95 | D37: 0.3521 | G37: -3 | H37: -2 | I37: -1 0 | J37: 0 | K37: 1 | L37: 2 | M37: 3 | N37: Scores Z
B38: -0.4 | C38: 96 | D38: 0.3683
B39: -0.3 | C39: 97 | D39: 0.3814 | I39: P < X | K39: X1 < P < X2
B40: -0.2 | C40: 98 | D40: 0.391
B41: -0.1 | C41: 99 | D41: 0.397
B42: 0 | C42: 100 | D42: =NORMDIST(B42,0,1,FALSE) -> 0.3989
B43: 0.1 | C43: 101 | D43: 0.397 | E43: =IF(C43<=$I$40,D43,"") -> 
B44: 0.2 | C44: 102 | D44: 0.391
B45: 0.3 | C45: 103 | D45: 0.3814
B46: 0.4 | C46: 104 | D46: 0.3683
B47: 0.5 | C47: 105 | D47: 0.3521
B48: 0.6 | C48: 106 | D48: 0.3332
B49: 0.7 | C49: 107 | D49: 0.3123
B50: 0.8 | C50: 108 | D50: 0.2897
B51: 0.9 | C51: 109 | D51: 0.2661
B52: 1 | C52: 110 | D52: 0.242 | F52: =IF(AND(C52>=$K$40,C52<=$L$40),D52,"") -> 
B53: 1.1 | C53: 111 | D53: 0.2179
B54: 1.2 | C54: 112 | D54: 0.1942 | E54: =IF(C54<=$I$40,D54,"") -> 
B55: 1.3 | C55: 113 | D55: 0.1714
B56: 1.4 | C56: 114 | D56: 0.1497
B57: 1.5 | C57: 115 | D57: 0.1295
B58: 1.6 | C58: 116 | D58: 0.1109
B59: 1.7 | C59: 117 | D59: =NORMDIST(B59,0,1,FALSE) -> 0.094
B60: 1.8 | C60: 118 | D60: 0.079
B61: 1.9 | C61: 119 | D61: 0.0656
B62: 2 | C62: 120 | D62: 0.054
B63: 2.1 | C63: 121 | D63: 0.044
B64: 2.2 | C64: 122 | D64: 0.0355
B65: 2.3 | C65: 123 | D65: 0.0283
B66: 2.4 | C66: 124 | D66: 0.0224
B67: 2.5 | C67: 125 | D67: 0.0175
B68: 2.6 | C68: 126 | D68: 0.0136
B69: 2.7 | C69: 127 | D69: 0.0104
B70: 2.8 | C70: 128 | D70: 0.0079
B71: 2.9 | C71: 129 | D71: 0.006
B72: 3 | C72: 130 | D72: 0.0044

Sheet CN-surf(1)
B2: La courbe normale standardisée (surface sous la courbe)
B4: On peut trouver la proportion ou le pourcentage de données inférieur à un score-z en se basant sur la courbe normale centrée réduite
M9: Score Z | O9: P < Z Below (gauche) | Q9: P > Z Above (droite) | S9: Score Z | U9: P < Z Below (gauche) | W9: P > Z Above (droite)
M11: 0 | O11: =NORMSDIST(M11) -> 0.5 | Q11: =1-O11 -> 0.5 | S11: 0.8 | U11: =NORMSDIST(S11) -> 0.788 | W11: =1-U11 -> 0.212
M12: 0.01 | O12: =NORMSDIST(M12) -> 0.504 | Q12: =1-O12 -> 0.496 | S12: 0.81 | U12: =NORMSDIST(S12) -> 0.791 | W12: 0.209
M13: 0.02 | O13: =NORMSDIST(M13) -> 0.508 | Q13: 0.492 | S13: 0.82 | U13: 0.794 | W13: 0.206
M14: 0.03 | O14: 0.512 | Q14: 0.488 | S14: 0.83 | U14: 0.797 | W14: 0.203
M15: 0.04 | O15: 0.516 | Q15: 0.484 | S15: 0.84 | U15: 0.8 | W15: 0.2
M16: 0.05 | O16: 0.52 | Q16: 0.48 | S16: 0.85 | U16: 0.802 | W16: 0.198
M17: 0.06 | O17: 0.524 | Q17: 0.476 | S17: 0.86 | U17: 0.805 | W17: 0.195
M18: 0.07 | O18: 0.528 | Q18: 0.472 | S18: 0.87 | U18: 0.808 | W18: 0.192
M19: 0.08 | O19: 0.532 | Q19: 0.468 | S19: 0.88 | U19: 0.811 | W19: 0.189
M20: 0.09 | O20: 0.536 | Q20: 0.464 | S20: 0.89 | U20: 0.813 | W20: 0.187
M21: 0.1 | O21: 0.54 | Q21: 0.46 | S21: 0.9 | U21: 0.816 | W21: 0.184
M22: 0.11 | O22: 0.544 | Q22: 0.456 | S22: 0.91 | U22: 0.819 | W22: 0.181
M23: 0.12 | O23: 0.548 | Q23: 0.452 | S23: 0.92 | U23: 0.821 | W23: 0.179
M24: 0.13 | O24: 0.552 | Q24: 0.448 | S24: 0.93 | U24: 0.824 | W24: 0.176
M25: 0.14 | O25: 0.556 | Q25: 0.444 | S25: 0.94 | U25: 0.826 | W25: 0.174
M26: 0.15 | O26: 0.56 | Q26: 0.44 | S26: 0.95 | U26: 0.829 | W26: 0.171
M27: 0.16 | O27: 0.564 | Q27: 0.436 | S27: 0.96 | U27: 0.831 | W27: 0.169
M28: 0.17 | O28: 0.567 | Q28: 0.433 | S28: 0.97 | U28: 0.834 | W28: 0.166
M29: 0.18 | O29: 0.571 | Q29: 0.429 | S29: 0.98 | U29: 0.836 | W29: 0.164
M30: 0.19 | O30: 0.575 | Q30: 0.425 | S30: 0.99 | U30: 0.839 | W30: 0.161
M31: 0.2 | O31: 0.579 | Q31: 0.421 | S31: 1 | U31: 0.841 | W31: 0.159
M32: 0.21 | O32: 0.583 | Q32: 0.417 | S32: 1.01 | U32: 0.844 | W32: 0.156
M33: 0.22 | O33: 0.587 | Q33: 0.413 | S33: 1.02 | U33: 0.846 | W33: 0.154
M34: 0.23 | O34: 0.591 | Q34: 0.409 | S34: 1.03 | U34: 0.848 | W34: 0.152
M35: 0.24 | O35: 0.595 | Q35: 0.405 | S35: 1.04 | U35: 0.851 | W35: 0.149
M36: 0.25 | O36: 0.599 | Q36: 0.401 | S36: 1.05 | U36: 0.853 | W36: 0.147
A37: Valeur de z | K37: Proportion | M37: 0.26 | O37: 0.603 | Q37: 0.397 | S37: 1.06 | U37: 0.855 | W37: 0.145
M38: 0.27 | O38: 0.606 | Q38: 0.394 | S38: 1.07 | U38: 0.858 | W38: 0.142
A39: de - ¥ à + ¥ | K39: 1 | L39: P(-∞ < z <+∞) | M39: 0.28 | O39: 0.61 | Q39: 0.39 | S39: 1.08 | U39: 0.86 | W39: 0.14
M40: 0.29 | O40: 0.614 | Q40: 0.386 | S40: 1.09 | U40: 0.862 | W40: 0.138
A41: de - ¥ à + 3 | J41: 0.9987 | K41: P(z < 3) | M41: 0.3 | O41: 0.618 | Q41: 0.382 | S41: 1.1 | U41: 0.864 | W41: 0.136
M42: 0.31 | O42: 0.622 | Q42: 0.378 | S42: 1.11 | U42: 0.867 | W42: 0.133
A43: de - ¥ à + 2 | I43: 0.9772 | J43: P(z < 2) | M43: 0.32 | O43: 0.626 | Q43: 0.374 | S43: 1.12 | U43: 0.869 | W43: 0.131
M44: 0.33 | O44: 0.629 | Q44: 0.371 | S44: 1.13 | U44: 0.871 | W44: 0.129
A45: de - ¥ à + 1 | H45: 0.8413 | I45: P(z < 1) | M45: 0.34 | O45: 0.633 | Q45: 0.367 | S45: 1.14 | U45: 0.873 | W45: 0.127
M46: 0.35 | O46: 0.637 | Q46: 0.363 | S46: 1.15 | U46: 0.875 | W46: 0.125
A47: de - ¥ à + 0 | G47: 0.5 | H47: P(z < 0) | M47: 0.36 | O47: 0.641 | Q47: 0.359 | S47: 1.16 | U47: 0.877 | W47: 0.123
M48: 0.37 | O48: 0.644 | Q48: 0.356 | S48: 1.17 | U48: 0.879 | W48: 0.121
A49: de - ¥ à -1 | F49: 0.1587 | G49: P(z < -1) | M49: 0.38 | O49: 0.648 | Q49: 0.352 | S49: 1.18 | U49: 0.881 | W49: 0.119
M50: 0.39 | O50: 0.652 | Q50: 0.348 | S50: 1.19 | U50: 0.883 | W50: 0.117
A51: de - ¥ à -2 | E51: 0.0228 | F51: P(z < -2) | M51: 0.4 | O51: =NORMSDIST(M51) -> 0.655 | Q51: =1-O51 -> 0.345 | S51: 1.2 | U51: 0.885 | W51: 0.115
M52: 0.41 | O52: =NORMSDIST(M52) -> 0.659 | Q52: =1-O52 -> 0.341 | S52: 1.21 | U52: 0.887 | W52: 0.113
A53: de - ¥ à -3 | D53: 0.0013 | E53: P(z < -3) | M53: 0.42 | O53: 0.663 | Q53: 0.337 | S53: 1.22 | U53: 0.889 | W53: 0.111
M54: 0.43 | O54: 0.666 | Q54: 0.334 | S54: 1.23 | U54: 0.891 | W54: 0.109
M55: 0.44 | O55: 0.67 | Q55: 0.33 | S55: 1.24 | U55: 0.893 | W55: 0.107
M56: 0.45 | O56: 0.674 | Q56: 0.326 | S56: 1.25 | U56: 0.894 | W56: 0.106
M57: 0.46 | O57: 0.677 | Q57: 0.323 | S57: 1.26 | U57: 0.896 | W57: 0.104
M58: 0.47 | O58: 0.681 | Q58: 0.319 | S58: 1.27 | U58: 0.898 | W58: 0.102
M59: 0.48 | O59: 0.684 | Q59: 0.316 | S59: 1.28 | U59: 0.9 | W59: 0.1
M60: 0.49 | O60: 0.688 | Q60: 0.312 | S60: 1.29 | U60: 0.901 | W60: 0.099
M61: 0.5 | O61: 0.691 | Q61: 0.309 | S61: 1.3 | U61: 0.903 | W61: 0.097
M62: 0.51 | O62: 0.695 | Q62: 0.305 | S62: 1.31 | U62: 0.905 | W62: 0.095
M63: 0.52 | O63: 0.698 | Q63: 0.302 | S63: 1.32 | U63: 0.907 | W63: 0.093
M64: 0.53 | O64: 0.702 | Q64: 0.298 | S64: 1.33 | U64: 0.908 | W64: 0.092
M65: 0.54 | O65: 0.705 | Q65: 0.295 | S65: 1.34 | U65: 0.91 | W65: 0.09
M66: 0.55 | O66: 0.709 | Q66: 0.291 | S66: 1.35 | U66: 0.911 | W66: 0.089
M67: 0.56 | O67: 0.712 | Q67: 0.288 | S67: 1.36 | U67: 0.913 | W67: 0.087
M68: 0.57 | O68: 0.716 | Q68: 0.284 | S68: 1.37 | U68: 0.915 | W68: 0.085
M69: 0.58 | O69: 0.719 | Q69: 0.281 | S69: 1.38 | U69: 0.916 | W69: 0.084
M70: 0.59 | O70: 0.722 | Q70: 0.278 | S70: 1.39 | U70: 0.918 | W70: 0.082
M71: 0.6 | O71: 0.726 | Q71: 0.274 | S71: 1.4 | U71: 0.919 | W71: 0.081
M72: 0.61 | O72: 0.729 | Q72: 0.271 | S72: 1.41 | U72: 0.921 | W72: 0.079
M73: 0.62 | O73: 0.732 | Q73: 0.268 | S73: 1.42 | U73: 0.922 | W73: 0.078
M74: 0.63 | O74: 0.736 | Q74: 0.264 | S74: 1.43 | U74: 0.924 | W74: 0.076
M75: 0.64 | O75: 0.739 | Q75: 0.261 | S75: 1.44 | U75: 0.925 | W75: =1-U75 -> 0.075
M76: 0.65 | O76: 0.742 | Q76: 0.258 | S76: 1.45 | U76: =NORMSDIST(S76) -> 0.926 | W76: 0.074
M77: 0.66 | O77: 0.745 | Q77: 0.255 | S77: 1.46 | U77: 0.928 | W77: 0.072
M78: 0.67 | O78: 0.749 | Q78: 0.251 | S78: 1.47 | U78: 0.929 | W78: 0.071
M79: 0.68 | O79: 0.752 | Q79: 0.248 | S79: 1.48 | U79: 0.931 | W79: 0.069
M80: 0.69 | O80: 0.755 | Q80: 0.245 | S80: 1.49 | U80: 0.932 | W80: 0.068
M81: 0.7 | O81: 0.758 | Q81: 0.242 | S81: 1.5 | U81: 0.933 | W81: 0.067
M82: 0.71 | O82: 0.761 | Q82: 0.239 | S82: 1.51 | U82: 0.934 | W82: 0.066
M83: 0.72 | O83: 0.764 | Q83: 0.236 | S83: 1.52 | U83: 0.936 | W83: 0.064
M84: 0.73 | O84: 0.767 | Q84: 0.233 | S84: 1.53 | U84: 0.937 | W84: 0.063
M85: 0.74 | O85: 0.77 | Q85: 0.23 | S85: 1.54 | U85: 0.938 | W85: 0.062
M86: 0.75 | O86: 0.773 | Q86: 0.227 | S86: 1.55 | U86: 0.939 | W86: 0.061
M87: 0.76 | O87: 0.776 | Q87: 0.224 | S87: 1.56 | U87: 0.941 | W87: 0.059
M88: 0.77 | O88: 0.779 | Q88: 0.221 | S88: 1.57 | U88: 0.942 | W88: 0.058
M89: 0.78 | O89: 0.782 | Q89: 0.218 | S89: 1.58 | U89: 0.943 | W89: 0.057
M90: 0.79 | O90: 0.785 | Q90: 0.215 | S90: 1.59 | U90: 0.944 | W90: 0.056

Sheet CN-surf(2)
B2: La courbe normale standardisée (surface sous la courbe)
B4: On peut trouver la proportion ou le pourcentage de données compris entre deux écarts-types ou scores-z en se basant sur la courbe normale centrée réduite
A34: Valeur de z | K34: Proportion
A36: de 0 à + ¥ | K36: 0.5 | L36: P(z > 0)
A38: de 0 à + 3 | J38: 0.49865 | K38: P(0 < z < 3)
A40: de 0 à + 2 | I40: 0.4772 | J40: P(0< z <2)
A42: de 0 à + 1 | H42: 0.3413 | I42: P(0 < z < 1)
A44: de 0 à -1 | G44: 0.3413 | H44: P(-1 < z <0)
A46: de 0 à -2 | G46: 0.4772 | H46: P(-2 < z < 0)
A48: de 0 à -3 | G48: 0.4987 | H48: P(-3 < z < 0)
A50: de 0 à - ¥ | G50: 0.5 | H50: P(z < 0)

Sheet CN-surf(3)
B2: La courbe normale standardisée (surface sous la courbe)
B4: On peut trouver la proportion ou le pourcentage de données compris entre deux écarts-types ou scores-z en se basant sur la courbe normale
A36: Valeur de z | K36: Proportion
A38: de - ¥ à + ¥ | K38: 1 | L38: P(-∞ < z <+∞)
A40: de -3 à + 3 | J40: 0.996 | K40: P(-3 < z < -3)
A42: de -2 à + 2 | I42: 0.9544 | J42: P(-2 < z < 2)
A44: de -1 à + 1 | H44: 0.6826 | I44: P(-1 < z < 1)
A46: de 0 à 0

Sheet CN-Prob
B2: Courbe normale standardisée et problème pratique | O2: Courbe normale standardisée et problème pratique (exercice)
B4: Les résultats à un test d'intelligence, dans une université, donne les résultats suivants en termes de moyenne et d'écart-type : | O4: Les résultats à un examen de statistiques sociales, dans une classe, donne les résultats suivants en termes de moyenne et d'écart-type (sur 20):
B6: m = | C6: 100 | O6: m = | P6: 10
B7: s = | C7: 20 | O7: s = | P7: 4
B9: En vous servant de la courbe normale et sachant que les résultats suivent une distribution normale, calculer le pourcentage de la population qui obtient un QI correspondant aux caractéristiques: | O9: En vous servant de la courbe normale et sachant que les résultats suivent une distribution normale, calculer le pourcentage d'étudiants qui obtient une note correspondant aux caractéristiques:
C10: ●Inférieur à 80 | P10: ●Inférieure à 14
C11: ●Inférieur à 130 | P11: ●Inférieure à 6
C12: ●Compris entre 80 et 130 | P12: ●Comprise entre 6 et 14
G14: m | H14: s | J14: P < X | L14: X1 < P < X2 | O14: 1. Calculez le pourcentage d'étudiants dont la note est inférieure à 14 (illustrez sur la courbe à gauche)
A15: z | C15: X | D15: P < X | E15: X1 < P < X2
A16: -3 | B16: =$G$15+($H$15*A16) -> 0 | C16: =NORMDIST(A16,0,1,FALSE) -> 0.0044 | D16: =IF(B16<=$J$15,C16,"") -> 0.0044 | E16: =IF(AND(B16>=$L$15,B16<=$M$15),C16,"") -> 0.0044 | O16: 1.1. Calculez d'abord le score-Z correspondant au score X 14
A17: -2.9 | B17: =$G$15+($H$15*A17) -> 0 | C17: =NORMDIST(A17,0,1,FALSE) -> 0.006 | D17: =IF(B17<=$J$15,C17,"") -> 0.006 | E17: =IF(AND(B17>=$L$15,B17<=$M$15),C17,"") -> 0.006
A18: -2.8 | B18: 0 | C18: 0.0079 | D18: 0.0079 | E18: 0.0079 | O18: zi=(Xi-m)/s
A19: -2.7 | B19: 0 | C19: 0.0104 | D19: 0.0104 | E19: 0.0104
A20: -2.6 | B20: 0 | C20: 0.0136 | D20: 0.0136 | E20: 0.0136 | O20: 1.2. Sur la table, quelle est la proportion de cas inférieure au score-z calculé?
A21: -2.5 | B21: 0 | C21: 0.0175 | D21: 0.0175 | E21: 0.0175
A22: -2.4 | B22: 0 | C22: 0.0224 | D22: 0.0224 | E22: 0.0224
A23: -2.3 | B23: 0 | C23: 0.0283 | D23: 0.0283 | E23: 0.0283
A24: -2.2 | B24: 0 | C24: 0.0355 | D24: 0.0355 | E24: 0.0355
A25: -2.1 | B25: 0 | C25: 0.044 | D25: 0.044 | E25: 0.044 | O25: 2. Calculez le pourcentage d'étudiants dont la note est inférieure à 6 (illustrez sur la courbe à gauche)
A26: -2 | B26: 0 | C26: 0.054 | D26: 0.054 | E26: 0.054
A27: -1.9 | B27: 0 | C27: 0.0656 | D27: 0.0656 | E27: 0.0656 | O27: 2.1. Calculez d'abord le score-Z correspondant au score X 6
A28: -1.8 | B28: 0 | C28: 0.079 | D28: 0.079 | E28: 0.079
A29: -1.7 | B29: 0 | C29: 0.094 | D29: 0.094 | E29: 0.094 | O29: zi=(Xi-m)/s
A30: -1.6 | B30: 0 | C30: 0.1109 | D30: 0.1109 | E30: 0.1109
A31: -1.5 | B31: 0 | C31: 0.1295 | D31: 0.1295 | E31: 0.1295 | O31: 2.2. Sur la table, quelle est la proportion de cas inférieure au score-z calculé?
A32: -1.4 | B32: 0 | C32: 0.1497 | D32: 0.1497 | E32: 0.1497
A33: -1.3 | B33: 0 | C33: 0.1714 | D33: 0.1714 | E33: 0.1714
A34: -1.2 | B34: 0 | C34: 0.1942 | D34: 0.1942 | E34: 0.1942
A35: -1.1 | B35: 0 | C35: 0.2179 | D35: 0.2179 | E35: 0.2179
A36: -1 | B36: 0 | C36: 0.242 | D36: 0.242 | E36: 0.242 | O36: 3. Calculez le % d'étudiants dont la note est comprise entre 6 et 14 (illustrez sur la courbe à gauche)
A37: -0.9 | B37: 0 | C37: 0.2661 | D37: 0.2661 | E37: 0.2661
A38: -0.8 | B38: 0 | C38: 0.2897 | D38: 0.2897 | E38: 0.2897 | O38: P(6 < X < 14) =P(X < 6) - P(X < 14)
A39: -0.7 | B39: 0 | C39: 0.3123 | D39: 0.3123 | E39: 0.3123 | K39: Scores X | N39: Scores X
A40: -0.6 | B40: 0 | C40: 0.3332 | D40: 0.3332 | E40: 0.3332
A41: -0.5 | B41: 0 | C41: 0.3521 | D41: 0.3521 | E41: 0.3521 | F41: -3 | G41: -2 | H41: -1 | I41: 0 | J41: 1 | L41: 2 | M41: 3 | N41: Scores Z
A42: -0.4 | B42: 0 | C42: 0.3683 | D42: 0.3683 | E42: 0.3683
A43: -0.3 | B43: 0 | C43: 0.3814 | D43: 0.3814 | E43: 0.3814 | F43: 1. Décrire les scores-X en inscrivant la moyenne et l'écart-type sur la courbe normale
A44: -0.2 | B44: 0 | C44: 0.391 | D44: =IF(B44<=$J$15,C44,"") -> 0.391 | E44: 0.391
A45: -0.1 | B45: 0 | C45: 0.397 | D45: 0.397 | E45: 0.397 | F45: 2. Calculez le pourcentage d'étudiants dont le QI est inférieur à 80 (illustrez la surface)
A46: 0 | B46: 0 | C46: 0.3989 | D46: 0.3989 | E46: 0.3989
A47: 0.1 | B47: 0 | C47: 0.397 | D47: 0.397 | E47: 0.397 | G47: 2.1. Calculez d'abord le score-Z correspondant au score X 80
A48: 0.2 | B48: =$G$15+($H$15*A48) -> 0 | C48: 0.391 | D48: 0.391 | E48: 0.391
A49: 0.3 | B49: 0 | C49: 0.3814 | D49: 0.3814 | E49: 0.3814 | G49: zi=(Xi-m)/s
A50: 0.4 | B50: 0 | C50: 0.3683 | D50: 0.3683 | E50: 0.3683
A51: 0.5 | B51: 0 | C51: =NORMDIST(A51,0,1,FALSE) -> 0.3521 | D51: 0.3521 | E51: 0.3521 | G51: 2.2. Dans la table, quelle est la proportion de cas inférieure au score-z calculé?
A52: 0.6 | B52: 0 | C52: 0.3332 | D52: 0.3332 | E52: 0.3332
A53: 0.7 | B53: 0 | C53: 0.3123 | D53: 0.3123 | E53: 0.3123
A54: 0.8 | B54: 0 | C54: 0.2897 | D54: 0.2897 | E54: 0.2897
A55: 0.9 | B55: 0 | C55: 0.2661 | D55: 0.2661 | E55: 0.2661 | F55: Le pourcentage d'étudiants ayant un QI inférieur à 80 est donc de:
A56: 1 | B56: 0 | C56: 0.242 | D56: 0.242 | E56: 0.242
A57: 1.1 | B57: 0 | C57: 0.2179 | D57: 0.2179 | E57: 0.2179 | F57: 3. Calculez le pourcentage d'étudiants dont le QI est inférieur à 130 (illustrez la surface)
A58: 1.2 | B58: 0 | C58: 0.1942 | D58: 0.1942 | E58: 0.1942
A59: 1.3 | B59: 0 | C59: 0.1714 | D59: 0.1714 | E59: 0.1714 | G59: 2.1. Calculez d'abord le score-Z correspondant au score X 130
A60: 1.4 | B60: 0 | C60: =NORMDIST(A60,0,1,FALSE) -> 0.1497 | D60: =IF(B60<=$J$15,C60,"") -> 0.1497 | E60: 0.1497
A61: 1.5 | B61: 0 | C61: 0.1295 | D61: 0.1295 | E61: 0.1295 | G61: zi=(Xi-m)/s
A62: 1.6 | B62: 0 | C62: 0.1109 | D62: 0.1109 | E62: 0.1109
A63: 1.7 | B63: 0 | C63: 0.094 | D63: 0.094 | E63: 0.094 | G63: 2.2. Dans la table, quelle est la proportion de cas inférieure au score-z calculé?
A64: 1.8 | B64: 0 | C64: 0.079 | D64: 0.079 | E64: 0.079
A65: 1.9 | B65: =$G$15+($H$15*A65) -> 0 | C65: 0.0656 | D65: 0.0656 | E65: 0.0656
A66: 2 | B66: 0 | C66: 0.054 | D66: 0.054 | E66: 0.054
A67: 2.1 | B67: 0 | C67: 0.044 | D67: 0.044 | E67: 0.044 | F67: Le pourcentage d'étudiants ayant un QI inférieur à 130 est donc de:
A68: 2.2 | B68: 0 | C68: 0.0355 | D68: 0.0355 | E68: 0.0355
A69: 2.3 | B69: 0 | C69: 0.0283 | D69: 0.0283 | E69: 0.0283 | F69: 4. Calculez le pourcentage d'étudiants dont le QI est compris entre 80 et 130 (illustrez la surface)
A70: 2.4 | B70: 0 | C70: 0.0224 | D70: 0.0224 | E70: 0.0224
A71: 2.5 | B71: 0 | C71: 0.0175 | D71: 0.0175 | E71: 0.0175 | G71: P(80 < X < 130) =P(X < 130) - P(X < 80)
A72: 2.6 | B72: 0 | C72: 0.0136 | D72: 0.0136 | E72: 0.0136
A73: 2.7 | B73: 0 | C73: 0.0104 | D73: 0.0104 | E73: 0.0104 | F73: Le pourcentage d'étudiants ayant un QI compris entre 80 et 130 est donc de:
A74: 2.8 | B74: 0 | C74: 0.0079 | D74: 0.0079 | E74: 0.0079
A75: 2.9 | B75: 0 | C75: 0.006 | D75: 0.006 | E75: 0.006
A76: 3 | B76: 0 | C76: 0.0044 | D76: 0.0044 | E76: 0.0044

Sheet CN-Table
B2: TaTable de la loi normale
R8: Z | S8: = | T8: 1.13
R10: P < Z | S10: = | T10: =NORMSDIST(T8) -> 0.8708
B15: Score Z | D15: P < Z Below (gauche) | F15: P > Z Above (droite) | H15: Score Z | J15: P < Z Below (gauche) | L15: P > Z Above (droite) | N15: Score Z | P15: P < Z Below (gauche) | R15: P > Z Above (droite) | T15: Score Z | V15: P < Z Below (gauche) | X15: P > Z Above (droite)
B17: 0 | D17: =NORMSDIST(B17) -> 0.5 | F17: =1-D17 -> 0.5 | H17: 0.4 | J17: =NORMSDIST(H17) -> 0.6554 | L17: =1-J17 -> 0.3446 | N17: 0.8 | P17: =NORMSDIST(N17) -> 0.7881 | R17: =1-P17 -> 0.2119 | T17: 1.2 | V17: =NORMSDIST(T17) -> 0.8849 | X17: =1-V17 -> 0.1151
B18: 0.01 | D18: =NORMSDIST(B18) -> 0.504 | F18: =1-D18 -> 0.496 | H18: 0.41 | J18: =NORMSDIST(H18) -> 0.6591 | L18: =1-J18 -> 0.3409 | N18: 0.81 | P18: =NORMSDIST(N18) -> 0.791 | R18: 0.209 | T18: 1.21 | V18: 0.8869 | X18: 0.1131
B19: 0.02 | D19: =NORMSDIST(B19) -> 0.508 | F19: 0.492 | H19: 0.42 | J19: 0.6628 | L19: 0.3372 | N19: 0.82 | P19: 0.7939 | R19: 0.2061 | T19: 1.22 | V19: 0.8888 | X19: 0.1112
B20: 0.03 | D20: 0.512 | F20: 0.488 | H20: 0.43 | J20: 0.6664 | L20: 0.3336 | N20: 0.83 | P20: 0.7967 | R20: 0.2033 | T20: 1.23 | V20: 0.8907 | X20: 0.1093
B21: 0.04 | D21: 0.516 | F21: 0.484 | H21: 0.44 | J21: 0.67 | L21: 0.33 | N21: 0.84 | P21: 0.7995 | R21: 0.2005 | T21: 1.24 | V21: 0.8925 | X21: 0.1075 | Z21: !
B22: 0.05 | D22: 0.5199 | F22: 0.4801 | H22: 0.45 | J22: 0.6736 | L22: 0.3264 | N22: 0.85 | P22: 0.8023 | R22: 0.1977 | T22: 1.25 | V22: 0.8944 | X22: 0.1056
B23: 0.06 | D23: 0.5239 | F23: 0.4761 | H23: 0.46 | J23: 0.6772 | L23: 0.3228 | N23: 0.86 | P23: 0.8051 | R23: 0.1949 | T23: 1.26 | V23: 0.8962 | X23: 0.1038
B24: 0.07 | D24: 0.5279 | F24: 0.4721 | H24: 0.47 | J24: 0.6808 | L24: 0.3192 | N24: 0.87 | P24: 0.8078 | R24: 0.1922 | T24: 1.27 | V24: 0.898 | X24: 0.102
B25: 0.08 | D25: 0.5319 | F25: 0.4681 | H25: 0.48 | J25: 0.6844 | L25: 0.3156 | N25: 0.88 | P25: 0.8106 | R25: 0.1894 | T25: 1.28 | V25: 0.8997 | X25: 0.1003
B26: 0.09 | D26: 0.5359 | F26: 0.4641 | H26: 0.49 | J26: 0.6879 | L26: 0.3121 | N26: 0.89 | P26: 0.8133 | R26: 0.1867 | T26: 1.29 | V26: 0.9015 | X26: 0.0985
B27: 0.1 | D27: 0.5398 | F27: 0.4602 | H27: 0.5 | J27: 0.6915 | L27: 0.3085 | N27: 0.9 | P27: 0.8159 | R27: 0.1841 | T27: 1.3 | V27: 0.9032 | X27: 0.0968
B28: 0.11 | D28: 0.5438 | F28: 0.4562 | H28: 0.51 | J28: 0.695 | L28: 0.305 | N28: 0.91 | P28: 0.8186 | R28: 0.1814 | T28: 1.31 | V28: 0.9049 | X28: 0.0951
B29: 0.12 | D29: 0.5478 | F29: 0.4522 | H29: 0.52 | J29: 0.6985 | L29: 0.3015 | N29: 0.92 | P29: 0.8212 | R29: 0.1788 | T29: 1.32 | V29: 0.9066 | X29: 0.0934
B30: 0.13 | D30: 0.5517 | F30: 0.4483 | H30: 0.53 | J30: 0.7019 | L30: 0.2981 | N30: 0.93 | P30: 0.8238 | R30: 0.1762 | T30: 1.33 | V30: 0.9082 | X30: 0.0918
B31: 0.14 | D31: 0.5557 | F31: 0.4443 | H31: 0.54 | J31: 0.7054 | L31: 0.2946 | N31: 0.94 | P31: 0.8264 | R31: 0.1736 | T31: 1.34 | V31: 0.9099 | X31: 0.0901
B32: 0.15 | D32: 0.5596 | F32: 0.4404 | H32: 0.55 | J32: 0.7088 | L32: 0.2912 | N32: 0.95 | P32: 0.8289 | R32: 0.1711 | T32: 1.35 | V32: 0.9115 | X32: 0.0885
B33: 0.16 | D33: 0.5636 | F33: 0.4364 | H33: 0.56 | J33: 0.7123 | L33: 0.2877 | N33: 0.96 | P33: 0.8315 | R33: 0.1685 | T33: 1.36 | V33: 0.9131 | X33: 0.0869
B34: 0.17 | D34: 0.5675 | F34: 0.4325 | H34: 0.57 | J34: 0.7157 | L34: 0.2843 | N34: 0.97 | P34: 0.834 | R34: 0.166 | T34: 1.37 | V34: 0.9147 | X34: 0.0853
B35: 0.18 | D35: 0.5714 | F35: 0.4286 | H35: 0.58 | J35: 0.719 | L35: 0.281 | N35: 0.98 | P35: 0.8365 | R35: 0.1635 | T35: 1.38 | V35: 0.9162 | X35: 0.0838
B36: 0.19 | D36: 0.5753 | F36: 0.4247 | H36: 0.59 | J36: 0.7224 | L36: 0.2776 | N36: 0.99 | P36: 0.8389 | R36: 0.1611 | T36: 1.39 | V36: 0.9177 | X36: 0.0823
B37: 0.2 | D37: 0.5793 | F37: 0.4207 | H37: 0.6 | J37: 0.7257 | L37: 0.2743 | N37: 1 | P37: 0.8413 | R37: 0.1587 | T37: 1.4 | V37: 0.9192 | X37: 0.0808
B38: 0.21 | D38: 0.5832 | F38: 0.4168 | H38: 0.61 | J38: 0.7291 | L38: 0.2709 | N38: 1.01 | P38: 0.8438 | R38: 0.1562 | T38: 1.41 | V38: 0.9207 | X38: 0.0793
B39: 0.22 | D39: 0.5871 | F39: 0.4129 | H39: 0.62 | J39: 0.7324 | L39: 0.2676 | N39: 1.02 | P39: 0.8461 | R39: 0.1539 | T39: 1.42 | V39: 0.9222 | X39: 0.0778
B40: 0.23 | D40: 0.591 | F40: 0.409 | H40: 0.63 | J40: 0.7357 | L40: 0.2643 | N40: 1.03 | P40: 0.8485 | R40: 0.1515 | T40: 1.43 | V40: 0.9236 | X40: 0.0764
B41: 0.24 | D41: 0.5948 | F41: 0.4052 | H41: 0.64 | J41: 0.7389 | L41: 0.2611 | N41: 1.04 | P41: 0.8508 | R41: 0.1492 | T41: 1.44 | V41: 0.9251 | X41: 0.0749
B42: 0.25 | D42: 0.5987 | F42: 0.4013 | H42: 0.65 | J42: 0.7422 | L42: 0.2578 | N42: 1.05 | P42: 0.8531 | R42: 0.1469 | T42: 1.45 | V42: 0.9265 | X42: 0.0735
B43: 0.26 | D43: 0.6026 | F43: 0.3974 | H43: 0.66 | J43: 0.7454 | L43: 0.2546 | N43: 1.06 | P43: 0.8554 | R43: 0.1446 | T43: 1.46 | V43: 0.9279 | X43: 0.0721
B44: 0.27 | D44: 0.6064 | F44: 0.3936 | H44: 0.67 | J44: 0.7486 | L44: 0.2514 | N44: 1.07 | P44: 0.8577 | R44: 0.1423 | T44: 1.47 | V44: 0.9292 | X44: 0.0708
B45: 0.28 | D45: 0.6103 | F45: 0.3897 | H45: 0.68 | J45: 0.7517 | L45: 0.2483 | N45: 1.08 | P45: 0.8599 | R45: 0.1401 | T45: 1.48 | V45: 0.9306 | X45: 0.0694
B46: 0.29 | D46: 0.6141 | F46: 0.3859 | H46: 0.69 | J46: 0.7549 | L46: 0.2451 | N46: 1.09 | P46: 0.8621 | R46: 0.1379 | T46: 1.49 | V46: 0.9319 | X46: 0.0681
B47: 0.3 | D47: 0.6179 | F47: 0.3821 | H47: 0.7 | J47: 0.758 | L47: 0.242 | N47: 1.1 | P47: 0.8643 | R47: 0.1357 | T47: 1.5 | V47: 0.9332 | X47: 0.0668
B48: 0.31 | D48: 0.6217 | F48: 0.3783 | H48: 0.71 | J48: 0.7611 | L48: 0.2389 | N48: 1.11 | P48: 0.8665 | R48: 0.1335 | T48: 1.51 | V48: 0.9345 | X48: 0.0655
B49: 0.32 | D49: 0.6255 | F49: 0.3745 | H49: 0.72 | J49: 0.7642 | L49: 0.2358 | N49: 1.12 | P49: 0.8686 | R49: 0.1314 | T49: 1.52 | V49: 0.9357 | X49: 0.0643
B50: 0.33 | D50: 0.6293 | F50: 0.3707 | H50: 0.73 | J50: 0.7673 | L50: 0.2327 | N50: 1.13 | P50: 0.8708 | R50: 0.1292 | T50: 1.53 | V50: 0.937 | X50: 0.063
B51: 0.34 | D51: 0.6331 | F51: 0.3669 | H51: 0.74 | J51: 0.7704 | L51: 0.2296 | N51: 1.14 | P51: 0.8729 | R51: 0.1271 | T51: 1.54 | V51: 0.9382 | X51: 0.0618
B52: 0.35 | D52: 0.6368 | F52: 0.3632 | H52: 0.75 | J52: 0.7734 | L52: 0.2266 | N52: 1.15 | P52: 0.8749 | R52: 0.1251 | T52: 1.55 | V52: 0.9394 | X52: 0.0606
B53: 0.36 | D53: 0.6406 | F53: 0.3594 | H53: 0.76 | J53: 0.7764 | L53: 0.2236 | N53: 1.16 | P53: 0.877 | R53: 0.123 | T53: 1.56 | V53: 0.9406 | X53: 0.0594
B54: 0.37 | D54: 0.6443 | F54: 0.3557 | H54: 0.77 | J54: 0.7794 | L54: 0.2206 | N54: 1.17 | P54: 0.879 | R54: 0.121 | T54: 1.57 | V54: 0.9418 | X54: 0.0582
B55: 0.38 | D55: 0.648 | F55: 0.352 | H55: 0.78 | J55: 0.7823 | L55: 0.2177 | N55: 1.18 | P55: 0.881 | R55: 0.119 | T55: 1.58 | V55: 0.9429 | X55: 0.0571
B56: 0.39 | D56: 0.6517 | F56: 0.3483 | H56: 0.79 | J56: 0.7852 | L56: 0.2148 | N56: 1.19 | P56: 0.883 | R56: 0.117 | T56: 1.59 | V56: 0.9441 | X56: 0.0559
B59: Score Z | D59: P < Z Below (gauche) | F59: P > Z Above (droite) | H59: Score Z | J59: P < Z Below (gauche) | L59: P > Z Above (droite) | N59: Score Z | P59: P < Z Below (gauche) | R59: P > Z Above (droite) | T59: Score Z | V59: P < Z Below (gauche) | X59: P > Z Above (droite)
B61: 1.6 | D61: =NORMSDIST(B61) -> 0.9452 | F61: =1-D61 -> 0.0548 | H61: 2 | J61: =NORMSDIST(H61) -> 0.9772 | L61: =1-J61 -> 0.0228 | N61: 2.4 | P61: =NORMSDIST(N61) -> 0.9918 | R61: =1-P61 -> 0.0082 | T61: 2.8 | V61: =NORMSDIST(T61) -> 0.9974 | X61: =1-V61 -> 0.0026
B62: 1.61 | D62: =NORMSDIST(B62) -> 0.9463 | F62: =1-D62 -> 0.0537 | H62: 2.01 | J62: =NORMSDIST(H62) -> 0.9778 | L62: =1-J62 -> 0.0222 | N62: 2.41 | P62: =NORMSDIST(N62) -> 0.992 | R62: =1-P62 -> 0.008 | T62: 2.81 | V62: =NORMSDIST(T62) -> 0.9975 | X62: =1-V62 -> 0.0025
B63: 1.62 | D63: 0.9474 | F63: 0.0526 | H63: 2.02 | J63: 0.9783 | L63: 0.0217 | N63: 2.42 | P63: 0.9922 | R63: 0.0078 | T63: 2.82 | V63: 0.9976 | X63: 0.0024
B64: 1.63 | D64: 0.9484 | F64: 0.0516 | H64: 2.03 | J64: 0.9788 | L64: 0.0212 | N64: 2.43 | P64: 0.9925 | R64: 0.0075 | T64: 2.83 | V64: 0.9977 | X64: 0.0023
B65: 1.64 | D65: 0.9495 | F65: 0.0505 | H65: 2.04 | J65: 0.9793 | L65: 0.0207 | N65: 2.44 | P65: 0.9927 | R65: 0.0073 | T65: 2.84 | V65: 0.9977 | X65: 0.0023
B66: 1.65 | D66: 0.9505 | F66: 0.0495 | H66: 2.05 | J66: 0.9798 | L66: 0.0202 | N66: 2.45 | P66: 0.9929 | R66: 0.0071 | T66: 2.85 | V66: 0.9978 | X66: 0.0022
B67: 1.66 | D67: 0.9515 | F67: 0.0485 | H67: 2.06 | J67: 0.9803 | L67: 0.0197 | N67: 2.46 | P67: 0.9931 | R67: 0.0069 | T67: 2.86 | V67: 0.9979 | X67: 0.0021
B68: 1.67 | D68: 0.9525 | F68: 0.0475 | H68: 2.07 | J68: 0.9808 | L68: 0.0192 | N68: 2.47 | P68: 0.9932 | R68: 0.0068 | T68: 2.87 | V68: 0.9979 | X68: 0.0021
B69: 1.68 | D69: 0.9535 | F69: 0.0465 | H69: 2.08 | J69: 0.9812 | L69: 0.0188 | N69: 2.48 | P69: 0.9934 | R69: 0.0066 | T69: 2.88 | V69: 0.998 | X69: 0.002
B70: 1.69 | D70: 0.9545 | F70: 0.0455 | H70: 2.09 | J70: 0.9817 | L70: 0.0183 | N70: 2.49 | P70: 0.9936 | R70: 0.0064 | T70: 2.89 | V70: 0.9981 | X70: 0.0019
B71: 1.7 | D71: 0.9554 | F71: 0.0446 | H71: 2.1 | J71: 0.9821 | L71: 0.0179 | N71: 2.5 | P71: 0.9938 | R71: 0.0062 | T71: 2.9 | V71: 0.9981 | X71: 0.0019
B72: 1.71 | D72: 0.9564 | F72: 0.0436 | H72: 2.11 | J72: 0.9826 | L72: 0.0174 | N72: 2.51 | P72: 0.994 | R72: 0.006 | T72: 2.91 | V72: 0.9982 | X72: 0.0018
B73: 1.72 | D73: 0.9573 | F73: 0.0427 | H73: 2.12 | J73: 0.983 | L73: 0.017 | N73: 2.52 | P73: 0.9941 | R73: 0.0059 | T73: 2.92 | V73: 0.9982 | X73: 0.0018
B74: 1.73 | D74: 0.9582 | F74: 0.0418 | H74: 2.13 | J74: 0.9834 | L74: 0.0166 | N74: 2.53 | P74: 0.9943 | R74: 0.0057 | T74: 2.93 | V74: 0.9983 | X74: 0.0017
B75: 1.74 | D75: 0.9591 | F75: 0.0409 | H75: 2.14 | J75: 0.9838 | L75: 0.0162 | N75: 2.54 | P75: 0.9945 | R75: 0.0055 | T75: 2.94 | V75: 0.9984 | X75: 0.0016
B76: 1.75 | D76: 0.9599 | F76: 0.0401 | H76: 2.15 | J76: 0.9842 | L76: 0.0158 | N76: 2.55 | P76: 0.9946 | R76: 0.0054 | T76: 2.95 | V76: 0.9984 | X76: 0.0016
B77: 1.76 | D77: 0.9608 | F77: 0.0392 | H77: 2.16 | J77: 0.9846 | L77: 0.0154 | N77: 2.56 | P77: 0.9948 | R77: 0.0052 | T77: 2.96 | V77: 0.9985 | X77: 0.0015
B78: 1.77 | D78: 0.9616 | F78: 0.0384 | H78: 2.17 | J78: 0.985 | L78: 0.015 | N78: 2.57 | P78: 0.9949 | R78: 0.0051 | T78: 2.97 | V78: 0.9985 | X78: 0.0015
B79: 1.78 | D79: 0.9625 | F79: 0.0375 | H79: 2.18 | J79: 0.9854 | L79: 0.0146 | N79: 2.58 | P79: 0.9951 | R79: 0.0049 | T79: 2.98 | V79: 0.9986 | X79: 0.0014
B80: 1.79 | D80: 0.9633 | F80: 0.0367 | H80: 2.19 | J80: 0.9857 | L80: 0.0143 | N80: 2.59 | P80: 0.9952 | R80: 0.0048 | T80: 2.99 | V80: 0.9986 | X80: 0.0014
B81: 1.8 | D81: 0.9641 | F81: 0.0359 | H81: 2.2 | J81: 0.9861 | L81: 0.0139 | N81: 2.6 | P81: 0.9953 | R81: 0.0047 | T81: 3 | V81: 0.9987 | X81: 0.0013
B82: 1.81 | D82: 0.9649 | F82: 0.0351 | H82: 2.21 | J82: 0.9864 | L82: 0.0136 | N82: 2.61 | P82: 0.9955 | R82: 0.0045 | T82: 3.01 | V82: 0.9987 | X82: 0.0013
B83: 1.82 | D83: 0.9656 | F83: 0.0344 | H83: 2.22 | J83: 0.9868 | L83: 0.0132 | N83: 2.62 | P83: 0.9956 | R83: 0.0044 | T83: 3.02 | V83: 0.9987 | X83: 0.0013
B84: 1.83 | D84: 0.9664 | F84: 0.0336 | H84: 2.23 | J84: 0.9871 | L84: 0.0129 | N84: 2.63 | P84: 0.9957 | R84: 0.0043 | T84: 3.03 | V84: 0.9988 | X84: 0.0012
B85: 1.84 | D85: 0.9671 | F85: 0.0329 | H85: 2.24 | J85: 0.9875 | L85: 0.0125 | N85: 2.64 | P85: 0.9959 | R85: 0.0041 | T85: 3.04 | V85: 0.9988 | X85: 0.0012
B86: 1.85 | D86: 0.9678 | F86: 0.0322 | H86: 2.25 | J86: 0.9878 | L86: 0.0122 | N86: 2.65 | P86: 0.996 | R86: 0.004 | T86: 3.05 | V86: 0.9989 | X86: 0.0011
B87: 1.86 | D87: 0.9686 | F87: 0.0314 | H87: 2.26 | J87: 0.9881 | L87: 0.0119 | N87: 2.66 | P87: 0.9961 | R87: 0.0039 | T87: 3.06 | V87: 0.9989 | X87: 0.0011
B88: 1.87 | D88: 0.9693 | F88: 0.0307 | H88: 2.27 | J88: 0.9884 | L88: 0.0116 | N88: 2.67 | P88: 0.9962 | R88: 0.0038 | T88: 3.07 | V88: 0.9989 | X88: 0.0011
B89: 1.88 | D89: 0.9699 | F89: 0.0301 | H89: 2.28 | J89: 0.9887 | L89: 0.0113 | N89: 2.68 | P89: 0.9963 | R89: 0.0037 | T89: 3.08 | V89: 0.999 | X89: 0.001
B90: 1.89 | D90: 0.9706 | F90: 0.0294 | H90: 2.29 | J90: 0.989 | L90: 0.011 | N90: 2.69 | P90: 0.9964 | R90: 0.0036 | T90: 3.09 | V90: 0.999 | X90: 0.001
B91: 1.9 | D91: 0.9713 | F91: 0.0287 | H91: 2.3 | J91: 0.9893 | L91: 0.0107 | N91: 2.7 | P91: 0.9965 | R91: 0.0035 | T91: 3.1 | V91: 0.999 | X91: 0.001
B92: 1.91 | D92: 0.9719 | F92: 0.0281 | H92: 2.31 | J92: 0.9896 | L92: 0.0104 | N92: 2.71 | P92: 0.9966 | R92: 0.0034 | T92: 3.11 | V92: 0.9991 | X92: 0.0009
B93: 1.92 | D93: 0.9726 | F93: 0.0274 | H93: 2.32 | J93: 0.9898 | L93: 0.0102 | N93: 2.72 | P93: 0.9967 | R93: 0.0033 | T93: 3.12 | V93: 0.9991 | X93: 0.0009
B94: 1.93 | D94: 0.9732 | F94: 0.0268 | H94: 2.33 | J94: 0.9901 | L94: 0.0099 | N94: 2.73 | P94: 0.9968 | R94: 0.0032 | T94: 3.13 | V94: 0.9991 | X94: 0.0009
B95: 1.94 | D95: 0.9738 | F95: 0.0262 | H95: 2.34 | J95: 0.9904 | L95: 0.0096 | N95: 2.74 | P95: 0.9969 | R95: 0.0031 | T95: 3.14 | V95: 0.9992 | X95: 0.0008
B96: 1.95 | D96: 0.9744 | F96: 0.0256 | H96: 2.35 | J96: 0.9906 | L96: 0.0094 | N96: 2.75 | P96: 0.997 | R96: 0.003 | T96: 3.15 | V96: 0.9992 | X96: 0.0008
B97: 1.96 | D97: 0.975 | F97: 0.025 | H97: 2.36 | J97: =NORMSDIST(H97) -> 0.9909 | L97: =1-J97 -> 0.0091 | N97: 2.76 | P97: =NORMSDIST(N97) -> 0.9971 | R97: =1-P97 -> 0.0029 | T97: 3.16 | V97: =NORMSDIST(T97) -> 0.9992 | X97: =1-V97 -> 0.0008
B98: 1.97 | D98: 0.9756 | F98: 0.0244 | H98: 2.37 | J98: =NORMSDIST(H98) -> 0.9911 | L98: =1-J98 -> 0.0089 | N98: 2.77 | P98: =NORMSDIST(N98) -> 0.9972 | R98: =1-P98 -> 0.0028 | T98: 3.17 | V98: =NORMSDIST(T98) -> 0.9992 | X98: =1-V98 -> 0.0008
B99: 1.98 | D99: 0.9761 | F99: 0.0239 | H99: 2.38 | J99: =NORMSDIST(H99) -> 0.9913 | L99: =1-J99 -> 0.0087 | N99: 2.78 | P99: =NORMSDIST(N99) -> 0.9973 | R99: =1-P99 -> 0.0027 | T99: 3.18 | V99: =NORMSDIST(T99) -> 0.9993 | X99: =1-V99 -> 0.0007
B100: 1.99 | D100: 0.9767 | F100: 0.0233 | H100: 2.39 | J100: =NORMSDIST(H100) -> 0.9916 | L100: =1-J100 -> 0.0084 | N100: 2.79 | P100: =NORMSDIST(N100) -> 0.9974 | R100: =1-P100 -> 0.0026 | T100: 3.19 | V100: =NORMSDIST(T100) -> 0.9993 | X100: =1-V100 -> 0.0007
